[Event "ESP chT Honor Division 2019"]
[Site "Melilla"]
[Date "2019.10.06"]
[Round "7.5"]
[White "Ibarra Jerez, Jose Carlos"]
[Black "Ortega Hermida, Daniel"]
[Result "1/2-1/2"]
[ECO "A05"]
[WhiteElo "2538"]
[BlackElo "2341"]
[Annotator "ChessBase"]
[PlyCount "67"]
[EventDate "2019.09.30"]
[EventType "team-tourn"]
[EventCountry "ESP"]
[SourceTitle "playchess.com"]
[Source "ChessBase"]
[SourceQuality "1"]
[TimeControl "40/5400+30:1800+30"]

1. Nf3 {[%emt 0:00:00]} Nf6 {[%emt 0:00:00]} 2. g3 {[%emt 0:00:16]} e6 {[%emt 0:00:00]} 3. Bg2 {[%emt 0:01:10]} d5 {[%emt 0:00:10]} 4. O-O {[%emt 0:00:33]} Be7 {[%emt 0:00:25]} 5. c4 {[%emt 0:00:34]} O-O {[%emt 0:00:18]} 6. b3 {[%emt 0:00:38]} a5 {[%emt 0:03:44]} 7. Nc3 {[%emt 0:05:11]} d4 {[%emt 0:04:19]} 8. Nb5 {[%emt 0:01:46]} c5 {[%emt 0:00:08]} 9. e3 {[%emt 0:04:05]} Nc6 {[%emt 0:00:33]} 10. exd4 {[%emt 0:00:46]} cxd4 {[%emt 0:00:06]} 11. Re1 {[%emt 0:00:55]} d3 {[%emt 0:01:14]} 12. Bb2 {[%emt 0:06:57]} Bd7 {[%emt 0:06:43]} 13. Qb1 Bc5 {[%emt 0:10:31]} 14. Qxd3 {[%emt 0:14:04]} Nb4 {[%emt 0:00:43]} 15. Qb1 {[%emt 0:05:42]} Bxb5 {[%emt 0:00:09]} 16. d4 {[%emt 0:00:26]} Be7 {[%emt 0:01:30]} 17. cxb5 {[%emt 0:02:50]} a4 {[%emt 0:03:37]} 18. a3 {[%emt 0:02:13]} Nbd5 {[%emt 0:03:04]} 19. Qd3 {[%emt 0:01:34]} axb3 {[%emt 0:25:18]} 20. Qxb3 {[%emt 0:02:04]} Qa5 {[%emt 0:02:02]} 21. Qd3 {[%emt 0:21:22]} Qa4 {[%emt 0:03:49]} 22. Rec1 {[%emt 0:02:54]} Rfd8 {[%emt 0:09:30]} 23. Bf1 {[%emt 0:02:28]} Ne8 {[%emt 0:04:27]} 24. Rcb1 {[%emt 0:03:02]} Nd6 {[%emt 0:01:23]} 25. Bc1 {[%emt 0:00:27]} Rac8 {[%emt 0:01:28]} 26. Qb3 {[%emt 0:01:42]} Nb6 {[%emt 0:04:45]} 27. Bd2 {[%emt 0:01:03]} Nf5 {[%emt 0:00:25]} 28. Ra2 {[%emt 0:04:57]} Bf6 {[%emt 0:01:55]} 29. Qxa4 {[%emt 0:02:08]} Nxa4 {[%emt 0:00:05]} 30. Rc1 {[%emt 0:01:28]} Rxc1 {[%emt 0:01:31]} 31. Bxc1 {[%emt 0:00:06]} Nxd4 {[%emt 0:00:06]} 32. Nxd4 {[%emt 0:00:20]} Bxd4 {[%emt 0:00:28]} 33. Rc2 {[%emt 0:00:54]} Nc5 {[%emt 0:01:43]} 34. Kg2 {[%emt 0:01:06]} 1/2-1/2

[Event "ESP chT Honor Division 2019"]
[Site "Melilla"]
[Date "2019.10.06"]
[Round "7.9"]
[White "Santos Latasa, Jaime"]
[Black "Forcen Esteban, Daniel"]
[Result "1-0"]
[ECO "A54"]
[WhiteElo "2580"]
[BlackElo "2568"]
[Annotator "ChessBase"]
[PlyCount "43"]
[EventDate "2019.09.30"]
[EventType "team-tourn"]
[EventCountry "ESP"]
[SourceTitle "playchess.com"]
[Source "ChessBase"]
[SourceQuality "1"]
[TimeControl "40/5400+30:1800+30"]

1. d4 {[%emt 0:00:00]} Nf6 {[%emt 0:00:00]} 2. c4 {[%emt 0:00:00]} d6 {[%emt 0:00:06]} 3. Nc3 {[%emt 0:00:00]} e5 {[%emt 0:00:04]} 4. Nf3 {[%emt 0:00:00]} exd4 {[%emt 0:01:20]} 5. Nxd4 {[%emt 0:00:05]} g6 6. e4 {[%emt 0:04:01]} Bg7 {[%emt 0:00:28]} 7. Be2 {[%emt 0:00:26]} O-O {[%emt 0:00:06]} 8. O-O Re8 {[%emt 0:00:24]} 9. f3 {[%emt 0:00:11]} Nc6 {[%emt 0:00:41]} 10. Be3 {[%emt 0:01:30]} Nh5 {[%emt 0:00:30]} 11. Qd2 {[%emt 0:01:07]} Nf4 {[%emt 0:00:41]} 12. Kh1 {[%emt 0:03:22]} Nxd4 {[%emt 0:22:25]} 13. Bxd4 {[%emt 0:10:48]} Be5 {[%emt 0:00:30]} 14. Rad1 {[%emt 0:09:52]} Be6 15. Rfe1 Nxe2 {[%emt 0:22:28]} 16. Qxe2 {[%emt 0:00:38]} Qh4 {[%emt 0:00:30]} 17. Bxe5 {[%emt 0:00:38]} dxe5 {[%emt 0:00:30]} 18. Nd5 {[%emt 0:00:30]} Rac8 {[%emt 0:12:12]} 19. g3 {[%emt 0:00:58]} Qg5 {[%emt 0:00:07]} 20. Qf2 {[%emt 0:00:46]} c6 {[%emt 0:02:41]} 21. f4 {[%emt 0:00:23]} Qd8 {[%emt 0:00:05]} 22. Ne3 {[%emt 0:00:30]} 1-0

[Event "ESP chT Honor Division 2019"]
[Site "Melilla"]
[Date "2019.10.06"]
[Round "7.11"]
[White "Moreno Tejera, Emilio"]
[Black "Gines Esteo, Pedro Antonio"]
[Result "0-1"]
[ECO "B12"]
[WhiteElo "2427"]
[BlackElo "2451"]
[Annotator "ChessBase"]
[PlyCount "82"]
[EventDate "2019.09.30"]
[EventType "team-tourn"]
[EventCountry "ESP"]
[SourceTitle "playchess.com"]
[Source "ChessBase"]
[SourceQuality "1"]
[TimeControl "40/5400+30:1800+30"]

1. e4 c6 {[%emt 0:00:00]} 2. d4 {[%emt 0:00:00]} d5 {[%emt 0:00:00]} 3. e5 {[%emt 0:00:11]} Bf5 {[%emt 0:00:00]} 4. Be3 {[%emt 0:00:10]} e6 {[%emt 0:00:50]} 5. Nd2 {[%emt 0:00:05]} Nd7 {[%emt 0:00:15]} 6. c3 {[%emt 0:00:17]} Ne7 {[%emt 0:00:41]} 7. f4 {[%emt 0:02:35]} h5 {[%emt 0:09:50]} 8. Ngf3 {[%emt 0:05:29]} Bg4 {[%emt 0:01:11]} 9. h3 {[%emt 0:00:30]} Nf5 {[%emt 0:00:30]} 10. Bf2 {[%emt 0:00:09]} Bxf3 {[%emt 0:00:07]} 11. Nxf3 {[%emt 0:00:07]} h4 {[%emt 0:00:25]} 12. Bd3 {[%emt 0:00:41]} g6 {[%emt 0:01:29]} 13. O-O {[%emt 0:05:09]} Be7 {[%emt 0:21:21]} 14. b3 {[%emt 0:11:03]} Qa5 {[%emt 0:00:17]} 15. c4 {[%emt 0:02:57]} Qa3 {[%emt 0:04:52]} 16. Qc2 {[%emt 0:07:40]} Bd8 {[%emt 0:11:05]} 17. Rab1 {[%emt 0:09:56]} Nb8 {[%emt 0:00:05]} 18. cxd5 {[%emt 0:02:26]} cxd5 {[%emt 0:06:18]} 19. Bb5+ {[%emt 0:15:31]} Nd7 {[%emt 0:21:21]} 20. b4 {[%emt 0:04:19]} Ne3 {[%emt 0:00:01]} 21. Bxe3 {[%emt 0:00:30]} Qxe3+ {[%emt 0:00:30]} 22. Kh1 {[%emt 0:01:32]} a6 23. Qa4 axb5 {[%emt 0:04:00]} 24. Qxa8 {[%emt 0:00:40]} O-O {[%emt 0:01:49]} 25. Qxb7 {[%emt 0:00:40]} Nb6 {[%emt 0:00:01]} 26. Qc6 {[%emt 0:01:53]} Nc4 {[%emt 0:01:59]} 27. Rbe1 {[%emt 0:11:38]} Qxf4 {[%emt 0:00:17]} 28. Qxb5 {[%emt 0:00:14]} Ne3 {[%emt 0:05:32]} 29. Rf2 {[%emt 0:05:41]} Nf5 {[%emt 0:00:34]} 30. Qd3 {[%emt 0:00:30]} Bb6 {[%emt 0:00:30]} 31. Qd2 {[%emt 0:01:14]} Qg3 {[%emt 0:03:30]} 32. a4 {[%emt 0:01:00]} Rc8 {[%emt 0:00:42]} 33. a5 {[%emt 0:00:58]} Bd8 {[%emt 0:00:01]} 34. Rff1 {[%emt 0:03:21]} g5 {[%emt 0:02:59]} 35. Rc1 {[%emt 0:00:56]} Rb8 {[%emt 0:00:34]} 36. Rc3 {[%emt 0:01:32]} g4 {[%emt 0:01:14]} 37. Nh2 {[%emt 0:00:59]} Qxc3 {[%emt 0:00:24]} 38. Qxc3 {[%emt 0:01:33]} Ng3+ {[%emt 0:00:05]} 39. Kg1 {[%emt 0:00:30]} Ne2+ {[%emt 0:00:00]} 40. Kh1 {[%emt 0:00:00]} Nxc3 {[%emt 0:00:00]} 41. Nxg4 Kg7 0-1

[Event "ESP chT Honor Division 2019"]
[Site "Melilla"]
[Date "2019.10.06"]
[Round "7.12"]
[White "Osmak, Iulija"]
[Black "Bivol, Alina"]
[Result "1-0"]
[ECO "A45"]
[WhiteElo "2409"]
[BlackElo "2371"]
[Annotator "ChessBase"]
[PlyCount "91"]
[EventDate "2019.09.30"]
[EventType "team-tourn"]
[EventCountry "ESP"]
[SourceTitle "playchess.com"]
[Source "ChessBase"]
[SourceQuality "1"]
[TimeControl "40/5400+30:1800+30"]

1. d4 {[%emt 0:00:00]} Nf6 {[%emt 0:00:00]} 2. Bf4 {[%emt 0:00:00]} g6 {[%emt 0:00:00]} 3. e3 {[%emt 0:00:00]} d6 {[%emt 0:01:42]} 4. Be2 {[%emt 0:00:00]} Bg7 {[%emt 0:02:06]} 5. Nf3 {[%emt 0:00:02]} Nbd7 {[%emt 0:01:04]} 6. h3 {[%emt 0:00:50]} b6 {[%emt 0:00:08]} 7. a4 {[%emt 0:03:37]} O-O {[%emt 0:01:11]} 8. a5 {[%emt 0:00:43]} bxa5 {[%emt 0:02:27]} 9. Nbd2 {[%emt 0:01:37]} c5 {[%emt 0:02:09]} 10. Nb3 {[%emt 0:08:19]} a4 {[%emt 0:16:38]} 11. Rxa4 {[%emt 0:00:14]} Nb6 {[%emt 0:00:24]} 12. Ra3 {[%emt 0:02:29]} cxd4 {[%emt 0:01:52]} 13. exd4 {[%emt 0:00:14]} Nbd5 {[%emt 0:04:57]} 14. Bd2 {[%emt 0:07:25]} Ne4 {[%emt 0:01:01]} 15. Ba5 {[%emt 0:00:43]} Qd7 {[%emt 0:00:20]} 16. Nfd2 {[%emt 0:18:28]} f5 {[%emt 0:14:30]} 17. O-O {[%emt 0:07:06]} Bb7 {[%emt 0:02:09]} 18. Nxe4 {[%emt 0:04:05]} fxe4 {[%emt 0:00:11]} 19. Bd2 {[%emt 0:00:13]} e3 {[%emt 0:04:18]} 20. fxe3 {[%emt 0:02:16]} Rxf1+ {[%emt 0:04:41]} 21. Bxf1 {[%emt 0:06:27]} Nf6 {[%emt 0:00:15]} 22. Na5 {[%emt 0:07:56]} Be4 {[%emt 0:00:07]} 23. Bd3 {[%emt 0:01:11]} Rf8 {[%emt 0:00:50]} 24. Qe2 {[%emt 0:01:33]} Kh8 {[%emt 0:01:42]} 25. Ra1 {[%emt 0:03:53]} Rb8 {[%emt 0:07:53]} 26. Nc4 {[%emt 0:02:57]} Qb7 {[%emt 0:00:25]} 27. b3 {[%emt 0:01:26]} Nh5 {[%emt 0:03:46]} 28. Kh2 {[%emt 0:05:47]} Nf6 {[%emt 0:07:15]} 29. Be1 {[%emt 0:02:58]} h6 {[%emt 0:01:47]} 30. Nd2 {[%emt 0:00:42]} Bxd3 {[%emt 0:05:58]} 31. Qxd3 {[%emt 0:00:03]} e5 {[%emt 0:02:25]} 32. Qxg6 {[%emt 0:02:57]} exd4 {[%emt 0:00:28]} 33. exd4 {[%emt 0:00:15]} Rg8 {[%emt 0:00:05]} 34. Bg3 {[%emt 0:01:22]} Re8 {[%emt 0:02:44]} 35. Bh4 {[%emt 0:02:56]} Rf8 {[%emt 0:02:40]} 36. Rf1 {[%emt 0:00:19]} Nh7 {[%emt 0:03:20]} 37. Rxf8+ {[%emt 0:00:27]} Nxf8 {[%emt 0:01:18]} 38. Qxd6 {[%emt 0:00:14]} Qf7 {[%emt 0:00:02]} 39. Nf3 {[%emt 0:01:06]} Ne6 {[%emt 0:01:01]} 40. Bg3 {[%emt 0:00:20]} Bf8 {[%emt 0:01:19]} 41. Ne5 {[%emt 0:31:14]} Qf5 {[%emt 0:31:08]} 42. Qd7 {[%emt 0:00:26]} Bg7 {[%emt 0:00:53]} 43. Nf7+ {[%emt 0:00:00]} Kg8 {[%emt 0:00:00]} 44. d5 {[%emt 0:00:00]} Nd4 {[%emt 0:00:00]} 45. Qxf5 {[%emt 0:00:00]} Nxf5 {[%emt 0:00:00]} 46. Nd8 {[%emt 0:00:00]} 1-0

[Event "ESP chT Honor Division 2019"]
[Site "Melilla"]
[Date "2019.10.06"]
[Round "7.14"]
[White "Peralta, Fernando"]
[Black "Vazquez Igarza, Renier"]
[Result "1/2-1/2"]
[ECO "E00"]
[WhiteElo "2569"]
[BlackElo "2557"]
[Annotator "ChessBase"]
[PlyCount "61"]
[EventDate "2019.09.30"]
[EventType "team-tourn"]
[EventCountry "ESP"]
[SourceTitle "playchess.com"]
[Source "ChessBase"]
[SourceQuality "1"]
[TimeControl "40/5400+30:1800+30"]

1. d4 {[%emt 0:02:27]} e6 {[%emt 0:00:00]} 2. c4 {[%emt 0:00:34]} Bb4+ {[%emt 0:00:07]} 3. Bd2 a5 {[%emt 0:00:29]} 4. Nc3 {[%emt 0:02:23]} d5 5. e3 {[%emt 0:00:40]} Nf6 {[%emt 0:00:40]} 6. Nf3 {[%emt 0:01:06]} O-O {[%emt 0:00:10]} 7. Bd3 {[%emt 0:00:54]} Nbd7 8. O-O {[%emt 0:02:37]} b6 {[%emt 0:01:15]} 9. Rc1 {[%emt 0:06:03]} Bb7 {[%emt 0:02:02]} 10. Qe2 {[%emt 0:11:35]} Ne4 {[%emt 0:01:50]} 11. Rfd1 {[%emt 0:00:28]} Nxd2 {[%emt 0:02:00]} 12. Rxd2 {[%emt 0:00:19]} Nf6 {[%emt 0:01:04]} 13. Rdd1 {[%emt 0:02:36]} dxc4 {[%emt 0:08:13]} 14. Bxc4 {[%emt 0:00:11]} Qe7 {[%emt 0:00:22]} 15. a3 {[%emt 0:03:24]} Bxc3 {[%emt 0:05:13]} 16. Rxc3 {[%emt 0:00:06]} Rfd8 {[%emt 0:01:05]} 17. Rcc1 {[%emt 0:08:39]} c5 {[%emt 0:06:38]} 18. Bb5 {[%emt 0:07:16]} Rdc8 {[%emt 0:07:06]} 19. h3 {[%emt 0:03:25]} h6 {[%emt 0:00:16]} 20. Ne5 {[%emt 0:08:51]} cxd4 {[%emt 0:03:38]} 21. Nc6 {[%emt 0:02:23]} Bxc6 {[%emt 0:05:16]} 22. Bxc6 {[%emt 0:01:18]} Rab8 {[%emt 0:04:33]} 23. Rxd4 {[%emt 0:00:45]} b5 {[%emt 0:07:56]} 24. Rdd1 {[%emt 0:03:38]} b4 {[%emt 0:00:59]} 25. a4 {[%emt 0:01:29]} Rd8 {[%emt 0:05:05]} 26. Rxd8+ {[%emt 0:07:02]} Qxd8 {[%emt 0:01:26]} 27. Bf3 {[%emt 0:02:15]} Rc8 {[%emt 0:02:44]} 28. Rxc8 {[%emt 0:07:44]} Qxc8 {[%emt 0:00:03]} 29. Qd1 {[%emt 0:00:09]} Qc7 {[%emt 0:04:32]} 30. g3 {[%emt 0:00:34]} g6 {[%emt 0:07:03]} 31. Kg2 {[%emt 0:00:27]} 1/2-1/2

[Event "ESP chT Honor Division 2019"]
[Site "Melilla"]
[Date "2019.10.06"]
[Round "7.15"]
[White "Moreno Ruiz, Javier"]
[Black "Korneev, Oleg"]
[Result "0-1"]
[ECO "D35"]
[WhiteElo "2470"]
[BlackElo "2504"]
[Annotator "ChessBase"]
[PlyCount "77"]
[EventDate "2019.09.30"]
[EventType "team-tourn"]
[EventCountry "ESP"]
[SourceTitle "playchess.com"]
[Source "ChessBase"]
[SourceQuality "1"]
[TimeControl "40/5400+30:1800+30"]

1. d4 {[%emt 0:00:00]} d5 {[%emt 0:00:00]} 2. c4 {[%emt 0:00:00]} e6 {[%emt 0:00:00]} 3. Nc3 {[%emt 0:00:00]} Nf6 {[%emt 0:00:00]} 4. cxd5 {[%emt 0:00:00]} exd5 {[%emt 0:00:00]} 5. Bg5 {[%emt 0:00:00]} Be7 {[%emt 0:00:00]} 6. e3 {[%emt 0:00:07]} c6 {[%emt 0:00:03]} 7. Bd3 {[%emt 0:01:10]} Nbd7 {[%emt 0:04:35]} 8. Qc2 {[%emt 0:03:10]} Nh5 {[%emt 0:00:35]} 9. Bxe7 {[%emt 0:00:08]} Qxe7 {[%emt 0:00:03]} 10. O-O-O {[%emt 0:00:17]} g6 {[%emt 0:00:09]} 11. Nf3 {[%emt 0:00:15]} Nb6 {[%emt 0:01:39]} 12. h3 {[%emt 0:00:12]} Be6 {[%emt 0:02:23]} 13. Kb1 {[%emt 0:00:32]} Ng7 {[%emt 0:02:42]} 14. g4 {[%emt 0:00:21]} O-O-O {[%emt 0:00:26]} 15. Na4 {[%emt 0:01:17]} Nxa4 {[%emt 0:02:30]} 16. Qxa4 {[%emt 0:00:05]} Kb8 {[%emt 0:00:05]} 17. Be2 {[%emt 0:04:07]} Ne8 {[%emt 0:01:59]} 18. Rd3 {[%emt 0:00:13]} Nd6 {[%emt 0:01:36]} 19. Ra3 {[%emt 0:00:09]} Nc8 {[%emt 0:05:42]} 20. Rc1 {[%emt 0:00:38]} Rd7 {[%emt 0:18:53]} 21. Ne5 {[%emt 0:05:49]} Rc7 {[%emt 0:00:06]} 22. Rcc3 {[%emt 0:38:15]} h5 {[%emt 0:04:45]} 23. f4 {[%emt 0:31:57]} hxg4 {[%emt 0:00:58]} 24. hxg4 {[%emt 0:00:18]} Rh1+ {[%emt 0:01:39]} 25. Rc1 {[%emt 0:00:24]} Rxc1+ {[%emt 0:06:59]} 26. Kxc1 {[%emt 0:00:00]} g5 {[%emt 0:12:17]} 27. f5 {[%emt 0:00:08]} f6 {[%emt 0:04:25]} 28. Nd3 {[%emt 0:02:09]} Bxf5 {[%emt 0:01:02]} 29. gxf5 {[%emt 0:02:19]} Qxe3+ {[%emt 0:00:12]} 30. Kd1 {[%emt 0:00:07]} Re7 {[%emt 0:00:59]} 31. Nc1 {[%emt 0:00:29]} Qg1+ {[%emt 0:00:36]} 32. Kd2 {[%emt 0:03:00]} Qf2 {[%emt 0:08:06]} 33. Qb4 {[%emt 0:03:32]} g4 {[%emt 0:01:56]} 34. Qc3 {[%emt 0:00:37]} Nd6 {[%emt 0:00:17]} 35. Kd1 {[%emt 0:00:56]} Nxf5 {[%emt 0:01:19]} 36. Qc5 {[%emt 0:02:17]} a6 {[%emt 0:07:24]} 37. Qb6 {[%emt 0:02:53]} g3 {[%emt 0:03:32]} 38. Qd8+ {[%emt 0:00:37]} Ka7 {[%emt 0:00:04]} 39. Rf3 {[%emt 0:00:00]} 0-1

[Event "ESP chT Honor Division 2019"]
[Site "Melilla"]
[Date "2019.10.06"]
[Round "7.16"]
[White "Asis Gargatagli, Hipolito"]
[Black "Suarez Uriel, Adrian"]
[Result "1-0"]
[ECO "E76"]
[WhiteElo "2511"]
[BlackElo "2392"]
[Annotator "ChessBase"]
[PlyCount "79"]
[EventDate "2019.09.30"]
[EventType "team-tourn"]
[EventCountry "ESP"]
[SourceTitle "playchess.com"]
[Source "ChessBase"]
[SourceQuality "1"]
[TimeControl "40/5400+30:1800+30"]

1. c4 {[%emt 0:00:00]} Nf6 {[%emt 0:00:00]} 2. Nc3 {[%emt 0:00:00]} g6 {[%emt 0:02:35]} 3. e4 {[%emt 0:00:05]} d6 {[%emt 0:00:04]} 4. d4 {[%emt 0:00:09]} Bg7 {[%emt 0:00:03]} 5. f4 {[%emt 0:00:12]} Na6 {[%emt 0:06:10]} 6. Nf3 {[%emt 0:01:34]} O-O {[%emt 0:00:19]} 7. Bd3 {[%emt 0:00:25]} Bg4 {[%emt 0:06:46]} 8. O-O {[%emt 0:01:19]} e5 {[%emt 0:00:42]} 9. fxe5 {[%emt 0:00:36]} dxe5 {[%emt 0:00:04]} 10. d5 {[%emt 0:00:09]} c6 {[%emt 0:04:46]} 11. Be3 {[%emt 0:04:42]} Rc8 {[%emt 0:08:00]} 12. Rc1 {[%emt 0:20:47]} cxd5 {[%emt 0:05:55]} 13. cxd5 {[%emt 0:02:23]} Nc5 {[%emt 0:00:08]} 14. Bb1 {[%emt 0:06:36]} a6 {[%emt 0:07:59]} 15. h3 {[%emt 0:18:29]} Bxf3 {[%emt 0:00:07]} 16. Qxf3 {[%emt 0:00:05]} Ne8 {[%emt 0:01:25]} 17. b4 {[%emt 0:02:56]} Nd7 {[%emt 0:00:10]} 18. Na4 {[%emt 0:00:10]} Rxc1 {[%emt 0:07:07]} 19. Rxc1 {[%emt 0:03:35]} Nd6 {[%emt 0:00:04]} 20. Nc5 {[%emt 0:01:13]} Qe7 {[%emt 0:08:04]} 21. a4 {[%emt 0:03:51]} Rc8 {[%emt 0:12:37]} 22. a5 {[%emt 0:04:55]} Nb5 {[%emt 0:06:51]} 23. Rf1 {[%emt 0:14:54]} Nd6 {[%emt 0:06:14]} 24. Ba2 {[%emt 0:08:52]} Nf8 {[%emt 0:05:07]} 25. Qg4 {[%emt 0:00:36]} h5 {[%emt 0:00:35]} 26. Qg3 {[%emt 0:00:21]} Nh7 {[%emt 0:00:35]} 27. Bb3 {[%emt 0:01:12]} Bf6 {[%emt 0:01:10]} 28. Kh1 {[%emt 0:00:14]} Bg5 {[%emt 0:02:30]} 29. Bg1 {[%emt 0:00:24]} Bd2 {[%emt 0:00:30]} 30. Ne6 {[%emt 0:01:17]} Bc3 {[%emt 0:03:04]} 31. Bc5 {[%emt 0:00:24]} Nxe4 {[%emt 0:02:28]} 32. Qxc3 {[%emt 0:00:05]} Rxc5 {[%emt 0:00:38]} 33. Qxe5 {[%emt 0:00:17]} fxe6 {[%emt 0:02:17]} 34. Qxe4 {[%emt 0:01:08]} Rc7 {[%emt 0:00:43]} 35. Qxg6+ {[%emt 0:00:58]} Kh8 {[%emt 0:00:04]} 36. dxe6 {[%emt 0:00:23]} h4 {[%emt 0:00:11]} 37. Bc2 {[%emt 0:00:30]} Qxb4 {[%emt 0:00:59]} 38. Qe8+ {[%emt 0:00:06]} Kg7 {[%emt 0:00:05]} 39. Rf7+ {[%emt 0:00:09]} Kh6 {[%emt 0:00:06]} 40. Rxh7+ {[%emt 0:00:05]} 1-0

[Event "ESP chT Honor Division 2019"]
[Site "Melilla"]
[Date "2019.10.06"]
[Round "7.17"]
[White "Martin Duque, Jesus"]
[Black "Moskalenko, Viktor"]
[Result "1-0"]
[ECO "C11"]
[WhiteElo "2445"]
[BlackElo "2475"]
[Annotator "ChessBase"]
[PlyCount "101"]
[EventDate "2019.09.30"]
[EventType "team-tourn"]
[EventCountry "ESP"]
[SourceTitle "playchess.com"]
[Source "ChessBase"]
[SourceQuality "1"]
[TimeControl "40/5400+30:1800+30"]

1. e4 {[%emt 0:00:00]} e6 {[%emt 0:00:00]} 2. d4 {[%emt 0:00:00]} d5 {[%emt 0:00:00]} 3. Nc3 {[%emt 0:00:00]} Nf6 {[%emt 0:00:08]} 4. e5 {[%emt 0:00:09]} Nfd7 {[%emt 0:00:06]} 5. f4 {[%emt 0:00:47]} c5 {[%emt 0:00:07]} 6. Nf3 {[%emt 0:00:42]} Nc6 {[%emt 0:00:06]} 7. Be3 {[%emt 0:00:24]} a6 {[%emt 0:03:28]} 8. Qd2 {[%emt 0:00:21]} b5 {[%emt 0:00:15]} 9. dxc5 {[%emt 0:00:27]} Bxc5 {[%emt 0:00:02]} 10. Bd3 {[%emt 0:00:55]} Qb6 {[%emt 0:17:35]} 11. Bf2 {[%emt 0:00:13]} b4 {[%emt 0:17:41]} 12. Na4 {[%emt 0:00:40]} Bxf2+ {[%emt 0:00:05]} 13. Qxf2 {[%emt 0:00:08]} Qxf2+ {[%emt 0:00:20]} 14. Kxf2 {[%emt 0:00:05]} Ke7 {[%emt 0:09:00]} 15. Rhc1 {[%emt 0:06:07]} Bb7 {[%emt 0:03:30]} 16. c4 {[%emt 0:05:44]} bxc3 {[%emt 0:03:14]} 17. bxc3 {[%emt 0:04:33]} Rhb8 {[%emt 0:19:42]} 18. Rab1 {[%emt 0:05:15]} Bc8 {[%emt 0:00:47]} 19. Nd4 {[%emt 0:03:07]} Nxd4 {[%emt 0:01:16]} 20. cxd4 {[%emt 0:00:03]} Rxb1 {[%emt 0:11:13]} 21. Rxb1 {[%emt 0:00:04]} h6 {[%emt 0:01:04]} 22. Ke3 {[%emt 0:08:57]} Rb8 {[%emt 0:03:15]} 23. Rxb8 {[%emt 0:03:00]} Nxb8 {[%emt 0:00:02]} 24. Nc5 {[%emt 0:00:47]} Kd8 {[%emt 0:03:38]} 25. g4 {[%emt 0:01:46]} a5 {[%emt 0:01:13]} 26. Nb3 {[%emt 0:05:44]} a4 {[%emt 0:00:33]} 27. Nc5 {[%emt 0:00:17]} a3 {[%emt 0:00:20]} 28. Bb5 {[%emt 0:07:06]} g5 {[%emt 0:00:25]} 29. fxg5 {[%emt 0:04:31]} hxg5 {[%emt 0:00:02]} 30. Kd3 {[%emt 0:01:25]} Ke7 {[%emt 0:02:14]} 31. Kc3 {[%emt 0:00:33]} f6 {[%emt 0:00:11]} 32. Kb4 {[%emt 0:08:08]} fxe5 {[%emt 0:00:18]} 33. dxe5 {[%emt 0:00:02]} Bd7 {[%emt 0:00:35]} 34. Nxd7 {[%emt 0:02:55]} Nxd7 {[%emt 0:00:06]} 35. Bxd7 {[%emt 0:00:02]} Kxd7 {[%emt 0:00:01]} 36. Kxa3 {[%emt 0:00:19]} Kc6 {[%emt 0:01:08]} 37. Kb4 {[%emt 0:00:04]} Kb6 {[%emt 0:00:08]} 38. a4 {[%emt 0:00:44]} Ka6 {[%emt 0:03:14]} 39. a5 {[%emt 0:02:24]} Ka7 {[%emt 0:00:53]} 40. Kb5 {[%emt 0:00:27]} Kb7 {[%emt 0:00:05]} 41. a6+ {[%emt 0:31:29]} Kb8 {[%emt 0:13:57]} 42. h4 {[%emt 0:00:00]} gxh4 {[%emt 0:00:21]} 43. g5 {[%emt 0:00:00]} h3 {[%emt 0:00:16]} 44. g6 {[%emt 0:00:00]} h2 {[%emt 0:00:04]} 45. g7 {[%emt 0:00:00]} h1=Q 46. g8=Q+ {[%emt 0:00:00]} Kc7 {[%emt 0:00:25]} 47. Qf7+ {[%emt 0:00:00]} Kd8 {[%emt 0:00:48]} 48. Qf8+ {[%emt 0:00:00]} Kd7 {[%emt 0:00:49]} 49. Qd6+ {[%emt 0:00:00]} Kc8 {[%emt 0:01:47]} 50. Qc6+ {[%emt 0:00:00]} Kd8 {[%emt 0:00:45]} 51. a7 {[%emt 0:00:00]} 1-0

[Event "ESP chT Honor Division 2019"]
[Site "Melilla"]
[Date "2019.10.06"]
[Round "7.18"]
[White "Milliet, Sophie"]
[Black "Di Benedetto, Desiree"]
[Result "1-0"]
[ECO "C11"]
[WhiteElo "2400"]
[BlackElo "2235"]
[Annotator "ChessBase"]
[PlyCount "79"]
[EventDate "2019.09.30"]
[EventType "team-tourn"]
[EventCountry "ESP"]
[SourceTitle "playchess.com"]
[Source "ChessBase"]
[SourceQuality "1"]
[TimeControl "40/5400+30:1800+30"]

1. e4 {[%emt 0:02:29]} e6 {[%emt 0:00:00]} 2. d4 {[%emt 0:00:04]} d5 {[%emt 0:00:00]} 3. Nc3 {[%emt 0:00:05]} Nf6 {[%emt 0:00:00]} 4. e5 {[%emt 0:00:04]} Nfd7 {[%emt 0:00:00]} 5. f4 {[%emt 0:00:04]} c5 {[%emt 0:00:00]} 6. Nf3 {[%emt 0:00:02]} Nc6 {[%emt 0:00:02]} 7. Be3 {[%emt 0:00:05]} cxd4 {[%emt 0:00:10]} 8. Nxd4 {[%emt 0:00:05]} Bc5 {[%emt 0:00:10]} 9. Qd2 {[%emt 0:00:18]} O-O {[%emt 0:00:13]} 10. O-O-O {[%emt 0:01:25]} a6 {[%emt 0:00:22]} 11. Nb3 {[%emt 0:01:32]} Be7 {[%emt 0:01:20]} 12. g4 {[%emt 0:14:24]} b5 {[%emt 0:02:16]} 13. Rg1 {[%emt 0:00:39]} Bb7 {[%emt 0:01:25]} 14. Rg3 {[%emt 0:05:08]} Qc7 {[%emt 0:04:02]} 15. Rh3 {[%emt 0:01:27]} Rfc8 {[%emt 0:03:52]} 16. Bd3 {[%emt 0:01:39]} g6 {[%emt 0:05:14]} 17. Qf2 {[%emt 0:04:49]} Nb4 {[%emt 0:02:38]} 18. Kb1 {[%emt 0:09:29]} Nxd3 {[%emt 0:04:45]} 19. cxd3 {[%emt 0:00:06]} b4 {[%emt 0:02:46]} 20. Na4 {[%emt 0:00:34]} d4 {[%emt 0:09:00]} 21. Bxd4 {[%emt 0:01:30]} Qc6 {[%emt 0:11:22]} 22. Nb6 {[%emt 0:00:57]} Nxb6 {[%emt 0:01:31]} 23. Bxb6 {[%emt 0:00:06]} a5 {[%emt 0:02:19]} 24. f5 {[%emt 0:33:12]} a4 {[%emt 0:17:53]} 25. Na5 {[%emt 0:00:55]} Rxa5 {[%emt 0:03:24]} 26. Bxa5 {[%emt 0:04:00]} b3 {[%emt 0:03:10]} 27. Bc3 {[%emt 0:00:31]} bxa2+ {[%emt 0:08:49]} 28. Ka1 {[%emt 0:00:54]} a3 {[%emt 0:01:32]} 29. Rf1 {[%emt 0:00:35]} axb2+ {[%emt 0:02:13]} 30. Bxb2 {[%emt 0:00:05]} exf5 {[%emt 0:09:49]} 31. gxf5 {[%emt 0:00:09]} Qd5 {[%emt 0:01:52]} 32. e6 {[%emt 0:01:58]} Rf8 {[%emt 0:01:32]} 33. f6 {[%emt 0:03:23]} Bc5 {[%emt 0:01:26]} 34. Qf4 {[%emt 0:07:54]} Qg2 {[%emt 0:00:46]} 35. Rg3 {[%emt 0:00:52]} Qe2 {[%emt 0:00:50]} 36. Rc1 {[%emt 0:00:44]} Ra8 {[%emt 0:00:42]} 37. exf7+ {[%emt 0:00:55]} Kf8 {[%emt 0:00:15]} 38. Qh6+ {[%emt 0:00:41]} Kxf7 {[%emt 0:00:01]} 39. Qxh7+ {[%emt 0:00:17]} Ke6 {[%emt 0:00:07]} 40. Qxb7 {[%emt 0:00:18]} 1-0